bitfinex-derivatives/quotes_SOLF0:USTF0_20230102
["timestamp","ask_amount","ask_price","bid_price","bid_amount"]
[1672646106494,51.0752,11.074,11.064,13.41]
[1672646106806,51.0752,11.074,11.065,5.0]
[1672646107431,5.0,11.073,11.064,13.41]
[1672646108276,51.0752,11.074,11.064,13.41]
[1672646108489,5.0,11.073,11.06,13.48]
[1672646108699,55.7736,11.073,11.061,5.0]
[1672646109536,5.0,11.072,11.06,13.48]
[1672646109750,55.7736,11.072,11.06,13.48]
[1672646109963,5.0,11.071,11.06,13.48]
[1672646110383,55.7736,11.071,11.06,13.48]
[1672646111952,50.7736,11.071,11.06,13.48]
[1672646112162,50.7736,11.071,11.061,5.0]
[1672646112373,0.11930821,11.076,11.064,5.0]
[1672646112586,5.0,11.075,11.064,5.0]
[1672646113636,5.0,11.075,11.059,5.0]
[1672646113842,5.0,11.073,11.059,5.0]
[1672646114690,58.4821,11.073,11.059,5.0]
[1672646115845,53.4821,11.072,11.059,5.0]
[1672646116162,5.0,11.071,11.062,5.0]
[1672646117206,5.0,11.071,11.061,13.48]
[1672646117417,53.4821,11.072,11.061,13.48]
[1672646118049,5.0,11.071,11.061,13.48]
[1672646118574,58.0333,11.071,11.061,13.48]
[1672646118994,53.0333,11.071,11.061,13.48]
[1672646119838,5.0,11.07,11.061,13.48]
[1672646120893,5.0,11.07,11.059,13.41]
[1672646121094,5.0,11.07,11.06,5.0]
[1672646121836,53.0333,11.071,11.06,5.0]
[1672646122255,5.0,11.075,11.06,5.0]
[1672646122466,49.6535,11.074,11.062,13.48]
[1672646122782,5.0,11.073,11.063,5.0]
[1672646123409,5.11930821,11.079,11.067,13.48]
[1672646123617,50.0,11.078,11.067,13.48]
[1672646123829,5.0,11.077,11.064,13.48]
[1672646124033,5.0,11.076,11.064,13.48]
[1672646124666,5.0,11.075,11.064,13.48]
[1672646124874,5.0,11.075,11.054,55.9326]
[1672646124875,5.0,11.075,11.061,13.38]
[1672646125088,5.0,11.073,11.061,13.38]
[1672646125299,5.0,11.071,11.061,13.38]
[1672646126245,56.878,11.071,11.061,13.38]
[1672646126562,5.0,11.07,11.059,5.0]
[1672646126772,56.293,11.07,11.059,5.0]
[1672646126975,56.293,11.07,11.06,5.0]
[1672646127189,51.293,11.07,11.061,13.48]
[1672646127610,5.0,11.069,11.061,13.48]
[1672646128344,5.0,11.069,11.054,50.9326]
[1672646128556,51.293,11.068,11.058,13.48]
[1672646128762,5.0,11.067,11.058,13.48]
[1672646129290,5.0,11.067,11.059,5.0]
[1672646129711,5.0,11.067,11.058,13.48]
[1672646130345,51.293,11.068,11.059,5.0]
[1672646130865,5.0,11.067,11.058,13.48]
[1672646132018,51.293,11.068,11.062,13.49]
[1672646132651,5.0,11.067,11.055,5.0]
[1672646133074,5.0,11.067,11.059,13.42]
[1672646136642,13.49,11.065,11.045,13.49]
[1672646136859,0.11935778,11.064,11.048,13.49]
[1672646137175,0.11935778,11.065,11.055,5.0]
[1672646138014,0.11935778,11.065,11.057,13.41]
[1672646139062,0.11935778,11.065,11.06,13.49]
[1672646139272,0.11935778,11.065,11.054,13.49]
[1672646139482,0.11935778,11.065,11.055,5.0]
[1672646139901,0.11935778,11.065,11.059,13.49]
[1672646140535,50.8075,11.067,11.059,13.49]
[1672646140852,5.0,11.066,11.056,13.41]
[1672646141163,50.3337,11.066,11.057,5.0]
[1672646141373,50.3337,11.066,11.062,13.39]
[1672646143475,5.0,11.065,11.058,13.47]
[1672646144420,50.3337,11.066,11.058,13.47]
[1672646144630,50.3337,11.066,11.061,13.41]
[1672646145468,5.0,11.065,11.053,13.49]
[1672646145677,5.0,11.065,11.056,13.49]
[1672646145884,5.0,11.065,11.057,5.0]
[1672646146101,50.3337,11.066,11.057,5.0]
[1672646146310,50.3337,11.066,11.062,13.41]
[1672646146520,50.3337,11.066,11.065,13.49]
[1672646147467,0.11999854,11.071,11.065,13.49]
[1672646148203,0.11999854,11.071,11.061,13.49]
[1672646148519,53.17449854,11.071,11.061,13.49]
[1672646149036,5.0,11.069,11.061,13.49]
[1672646149881,59.4176,11.069,11.061,13.49]
[1672646150616,54.4176,11.069,11.061,13.49]
[1672646151983,54.4176,11.069,11.063,13.49]
[1672646152192,51.8267,11.068,11.064,5.0]
[1672646152406,0.11999854,11.071,11.064,5.0]
[1672646153344,0.11999854,11.071,11.063,13.49]
[1672646155021,0.11999854,11.071,11.064,5.0]
[1672646155661,5.0,11.083,11.064,5.0]
[1672646155662,849.33094063,11.089,11.069,13.49]
[1672646155973,50.0,11.088,11.075,13.49]
[1672646156184,60.88595199,11.088,11.075,13.49]
[1672646156394,5.0,11.087,11.075,13.49]
[1672646156598,15.88595199,11.087,11.075,13.49]
[1672646157024,5.0,11.086,11.075,13.49]
[1672646157235,15.88595199,11.086,11.074,0.11981081]
[1672646157558,15.88595199,11.085,11.069,13.49]
[1672646157865,5.11921837,11.084,11.07,5.11981081]
[1672646158076,5.11921837,11.084,11.072,13.41]
[1672646158602,5.11921837,11.084,11.073,5.0]
[1672646159961,0.11921837,11.084,11.073,5.0]
[1672646161327,5.11921837,11.084,11.073,5.0]
[1672646162488,5.11921837,11.084,11.072,13.41]
[1672646162700,5.0,11.082,11.072,13.41]
[1672646163436,51.5941,11.083,11.072,13.41]
[1672646164065,5.0,11.082,11.072,13.41]
[1672646164798,51.5941,11.083,11.072,13.41]
[1672646167215,5.0,11.082,11.072,13.41]
[1672646168372,51.5941,11.083,11.072,13.41]
[1672646169216,5.0,11.082,11.072,13.41]
[1672646170686,51.5941,11.083,11.072,13.41]
[1672646170896,5.0,11.082,11.072,13.41]
[1672646171839,5.119009,11.078,11.055,52.6529]
[1672646172042,0.119009,11.077,11.059,5.0]
[1672646172251,0.119009,11.076,11.059,5.0]
[1672646172466,0.119009,11.075,11.059,5.0]
[1672646172682,5.119009,11.074,11.059,5.0]
[1672646172888,5.0,11.072,11.061,5.0]
[1672646173093,5.0,11.072,11.063,13.41]
[1672646173303,51.3239,11.073,11.064,5.0]
[1672646173939,0.0039,11.073,11.066,13.49]
[1672646174150,5.0,11.082,11.072,13.49]
[1672646174360,5.0,11.082,11.073,5.0]
[1672646175623,5.0,11.088,11.073,5.0]
[1672646175933,5.0,11.088,11.078,13.47]
[1672646176150,10.88474604,11.085,11.079,5.0]
[1672646176676,10.88474604,11.086,11.078,13.47]
[1672646177196,10.88474604,11.086,11.08,13.49]
[1672646177611,5.0,11.092,11.08,13.49]
[1672646178032,5.0,11.092,11.078,13.49]
[1672646178461,5.0,11.092,11.079,5.0]
[1672646178880,5.0,11.092,11.078,13.49]
[1672646179715,5.0,11.092,11.081,13.49]
[1672646180666,5.0,11.096,11.081,13.49]
[1672646180876,5.0,11.096,11.076,5.0]
[1672646180877,50.0,11.099,11.087,13.49]
[1672646181088,5.0,11.096,11.087,13.49]
[1672646181301,5.0,11.096,11.083,13.39]
[1672646181510,5.0,11.096,11.087,13.49]
[1672646181720,10.87339168,11.095,11.088,5.0]
[1672646182348,10.87339168,11.095,11.087,13.49]
[1672646182560,0.00339168,11.095,11.093,13.39]
[1672646182771,5.0,11.107,11.093,13.39]
[1672646183927,18.42,11.107,11.09,13.47]
[1672646184132,10.85863507,11.106,11.091,5.0]
[1672646184561,5.0,11.105,11.091,5.0]
[1672646184761,5.0,11.105,11.09,13.47]
[1672646184969,5.0,11.103,11.09,13.47]
[1672646185395,50.0,11.099,11.088,53.0049]
[1672646185605,5.0,11.098,11.084,5.0]
[1672646185812,15.86920342,11.098,11.084,5.0]
[1672646186029,29.35920342,11.098,11.08,5.0]
[1672646186239,5.0,11.097,11.079,49.3048]
[1672646186442,15.86920342,11.097,11.079,49.3048]
[1672646186654,5.0,11.096,11.079,49.3048]
[1672646186865,15.86920342,11.096,11.079,49.3048]
[1672646187075,15.86920342,11.096,11.078,13.49]
[1672646187076,5.0,11.095,11.08,18.39]
[1672646187281,15.86920342,11.095,11.08,18.39]
[1672646187496,50.0,11.089,11.076,53.1741]
[1672646187712,13.46,11.086,11.066,13.47]
[1672646187918,0.11895318,11.091,11.072,50.0]
[1672646188128,1.4,11.105,11.082,50.0]
[1672646188443,1.4,11.105,11.088,5.0]
[1672646188655,1.4,11.105,11.09,13.39]
[1672646189077,1.4,11.105,11.091,5.0]
[1672646189812,1.4,11.105,11.093,13.47]
[1672646190024,1.4,11.105,11.094,5.0]
[1672646190340,55.0,11.109,11.094,5.0]
[1672646190653,5.0,11.109,11.094,5.0]
[1672646190864,5.0,11.113,11.1,13.49]
[1672646191069,5.0,11.122,11.104,13.48]
[1672646191283,50.0,11.129,11.102,50.0]
[1672646191602,5.0,11.125,11.108,5.0]
[1672646191812,9.99602194,11.123,11.111,13.49]
[1672646192337,9.99602194,11.123,11.108,5.0]
[1672646192338,9.99602194,11.123,11.122,13.47]
[1672646192648,5.0,11.141,11.123,5.0]
[1672646192864,9.98268746,11.138,11.134,13.49]
[1672646193175,5.0,11.141,11.125,53.96]
[1672646193176,9.98268746,11.14,11.126,5.0]
[1672646193386,9.98268746,11.14,11.133,13.39]
[1672646193597,59.98268746,11.14,11.13,13.49]
[1672646193802,5.0,11.138,11.123,5.0]
[1672646194017,5.0,11.138,11.122,5.0]
[1672646194333,9.98268746,11.137,11.124,13.47]
[1672646194540,5.0,11.136,11.114,5.0]
[1672646194751,50.0,11.13,11.114,5.0]
[1672646195064,5.0,11.129,11.114,5.0]
[1672646195382,5.0,11.134,11.12,13.49]
[1672646195802,5.0,11.134,11.121,5.0]
[1672646196009,8.36886346,11.133,11.121,5.0]
[1672646196432,8.36886346,11.133,11.12,13.49]
[1672646196433,50.0,11.13,11.113,68.0716]
[1672646196639,50.0,11.13,11.113,18.39]
[1672646196851,8.36886346,11.129,11.113,18.39]
[1672646197064,13.36886346,11.129,11.113,18.39]
[1672646197479,5.0,11.128,11.113,18.39]
[1672646197694,5.0,11.128,11.113,5.0]
[1672646197902,8.36886346,11.127,11.113,5.0]
[1672646198114,8.36886346,11.127,11.105,5.0]
[1672646198115,13.46,11.124,11.105,13.49]
[1672646198327,50.0,11.12,11.106,5.0]
[1672646198537,72.43,11.123,11.106,5.0]
[1672646198747,72.43,11.123,11.099,49.4643]
[1672646198748,8.36886346,11.119,11.1,5.0]
[1672646198953,13.42,11.117,11.1,5.0]
[1672646199168,5.0,11.116,11.1,5.0]
[1672646199801,5.0,11.116,11.102,13.49]
[1672646200010,18.42,11.116,11.1,5.0]
[1672646200219,13.45,11.113,11.1,5.0]
[1672646200430,5.0,11.112,11.1,5.0]
[1672646201476,5.0,11.115,11.102,13.49]
[1672646201899,5.0,11.115,11.103,5.0]
[1672646202735,67.48,11.114,11.092,13.49]
[1672646202950,13.47,11.107,11.09,5.0]
[1672646203159,5.0,11.106,11.09,5.0]
[1672646203472,5.11986204,11.106,11.09,5.11900143]
[1672646204001,5.0,11.105,11.09,5.11900143]
[1672646204735,5.0,11.105,11.09,0.11900143]
[1672646206625,0.11986204,11.106,11.105,0.06541369]
[1672646206844,5.0,11.105,11.093,5.0]
[1672646207159,5.0,11.105,11.093,0.11900143]
[1672646207369,5.0,11.105,11.09,0.11900143]
[1672646208421,5.0,11.105,11.092,5.0]
[1672646210524,0.05444835,11.107,11.092,5.0]
[1672646210735,0.05444835,11.107,11.093,50.0]
[1672646211051,0.05444835,11.108,11.094,5.0]
[1672646213255,0.05444835,11.108,11.094,18.49]
[1672646213571,0.05444835,11.108,11.093,0.11900143]
[1672646213781,0.05444835,11.108,11.092,0.11900143]
[1672646213992,0.05444835,11.108,11.092,5.11900143]
[1672646214306,5.05444835,11.107,11.093,0.11900143]
[1672646214722,5.05444835,11.107,11.093,50.11900143]
[1672646214931,5.05444835,11.107,11.094,5.0]
[1672646216823,5.05444835,11.107,11.093,0.11900143]
[1672646217035,5.05444835,11.107,11.09,0.11900143]
[1672646217670,5.05444835,11.107,11.091,5.11900143]
[1672646217870,5.05444835,11.107,11.092,0.11900143]
[1672646218085,5.05444835,11.107,11.093,50.0]
[1672646218291,0.05444835,11.107,11.094,5.0]
[1672646218929,0.05444835,11.107,11.096,13.56]
[1672646219140,57.8902,11.114,11.099,13.56]
[1672646219349,5.0,11.115,11.1,5.0]
[1672646223123,5.0,11.121,11.105,13.56]
[1672646223332,104.2961,11.12,11.104,0.11900494]
[1672646223550,5.0,11.119,11.104,0.11900494]
[1672646223865,5.0,11.119,11.108,13.56]
[1672646224075,5.0,11.119,11.109,5.0]
[1672646224392,5.0,11.119,11.108,13.56]
[1672646225016,5.0,11.119,11.104,18.64900494]
[1672646225648,5.0,11.119,11.104,13.64900494]
[1672646226281,8.39085981,11.118,11.104,13.64900494]
[1672646226493,5.0,11.117,11.104,13.64900494]
[1672646228914,13.5,11.113,11.093,50.0]
[1672646229223,5.0,11.112,11.097,13.44]
[1672646229434,5.0,11.114,11.097,13.44]
[1672646229639,67.45,11.119,11.098,5.0]
[1672646229850,67.45,11.119,11.107,13.56]
[1672646229851,52.6043,11.119,11.107,13.56]
[1672646230058,5.0,11.118,11.108,5.0]
[1672646230477,5.0,11.118,11.101,13.56]
[1672646230695,53.0252,11.117,11.101,13.56]
[1672646231013,5.0,11.116,11.107,13.44]
[1672646231220,5.0,11.116,11.108,5.0]
[1672646231431,5.0,11.122,11.108,5.0]
[1672646231432,5.0,11.122,11.11,13.42]
[1672646231641,5.0,11.122,11.111,5.0]
[1672646232374,5.0,11.122,11.11,13.42]
[1672646232794,50.0,11.12,11.1,5.0]
[1672646233007,5.0,11.118,11.104,5.0]
[1672646233423,5.0,11.118,11.1,18.56]
[1672646233635,52.2077,11.117,11.1,18.56]
[1672646233844,52.2077,11.117,11.106,13.55]
[1672646233845,5.0,11.116,11.106,13.55]
[1672646234268,50.0,11.14,11.115,13.53]
[1672646234470,57.2077,11.134,11.113,90.56]
[1672646234684,50.0,11.13,11.105,54.2810292]
[1672646234895,0.1199386,11.128,11.114,0.1196292]
[1672646235314,5.1199386,11.128,11.117,5.0]
[1672646236158,5.1199386,11.128,11.116,13.56]
[1672646236789,5.0,11.127,11.113,13.55]
[1672646236996,5.0,11.127,11.114,5.0]
[1672646237413,5.0,11.127,11.113,13.55]
[1672646238792,13.5,11.114,11.087,67.65]
[1672646239001,67.6099386,11.113,11.093,50.0]
[1672646239207,5.1199386,11.112,11.094,5.0]
[1672646239523,0.1199386,11.109,11.094,5.0]
[1672646239733,0.1199386,11.119,11.094,5.0]
[1672646239943,0.1199386,11.119,11.105,13.43]
[1672646239944,0.1199386,11.118,11.105,13.43]
[1672646240155,5.1199386,11.118,11.105,13.43]
[1672646240358,0.1199386,11.118,11.105,13.43]
[1672646240571,5.0,11.124,11.109,13.53]
[1672646240890,5.0,11.124,11.11,5.0]
[1672646242886,5.1199386,11.126,11.112,13.56]
[1672646243200,0.1199386,11.125,11.113,5.0]
[1672646243828,0.1199386,11.125,11.112,13.56]
[1672646244564,0.1199386,11.125,11.107,53.8127]
[1672646244565,0.1199386,11.125,11.109,13.56]
[1672646244768,67.42,11.124,11.11,5.0]
[1672646244983,5.0,11.123,11.11,5.0]
[1672646246351,5.0,11.123,11.109,13.42]
[1672646246875,58.6737,11.123,11.109,13.42]
[1672646248135,5.0,11.122,11.109,13.42]
[1672646248452,5.0,11.122,11.106,13.56]
[1672646248768,5.0,11.12,11.107,5.0]
[1672646249181,5.0,11.12,11.104,5.0]
[1672646249394,5.0,11.118,11.104,5.0]
[1672646249818,5.0,11.118,11.103,13.56]
[1672646250026,5.11997354,11.116,11.1,5.0]
[1672646250230,5.11997354,11.115,11.1,5.0]
[1672646250651,5.11997354,11.113,11.095,5.0]
[1672646250869,13.53,11.111,11.095,5.0]
[1672646251080,57.52507354,11.11,11.095,5.0]
[1672646251393,57.52507354,11.11,11.093,13.53]
[1672646251394,13.47,11.106,11.084,5.0]
[1672646251604,0.11997354,11.102,11.084,18.44]
[1672646252022,13.56,11.103,11.102,0.05855866]
[1672646252444,13.56,11.103,11.084,18.44]
[1672646252657,5.0,11.102,11.084,18.44]
[1672646253171,5.0,11.102,11.087,13.53]
[1672646253593,5.0,11.102,11.088,5.0]
[1672646254233,5.0,11.102,11.087,13.53]
[1672646254543,5.0,11.102,11.088,5.0]
[1672646256332,5.0,11.102,11.087,13.53]
[1672646258535,55.2711,11.102,11.084,18.56]
[1672646258852,5.0,11.1,11.084,18.56]
[1672646259590,55.2711,11.1,11.084,18.56]
[1672646261272,52.8067,11.099,11.084,18.56]
[1672646261585,5.0,11.098,11.084,18.56]
[1672646261900,5.0,11.098,11.084,13.56]
[1672646262421,57.8067,11.098,11.085,5.0]
[1672646263265,52.8067,11.098,11.085,5.0]
[1672646263470,18.56,11.106,11.087,13.53]
[1672646263679,18.56,11.106,11.088,5.0]
[1672646263680,5.0,11.102,11.088,5.0]
[1672646263895,5.0,11.107,11.094,5.0]
[1672646264945,5.0,11.107,11.093,13.56]
[1672646265472,58.5255,11.107,11.093,13.56]
[1672646266417,53.5255,11.107,11.096,13.42]
[1672646266629,53.5255,11.107,11.097,5.0]
[1672646267997,53.5255,11.107,11.096,13.42]
[1672646268209,5.0,11.106,11.096,13.42]
[1672646269991,53.5255,11.107,11.096,13.42]
[1672646271034,0.11936155,11.111,11.097,5.0]
[1672646271362,5.0,11.11,11.099,5.0]
[1672646272615,5.0,11.111,11.099,5.0]
[1672646272824,49.88036155,11.112,11.099,5.0]
[1672646273147,5.11936155,11.117,11.105,5.0]
[1672646273556,5.11936155,11.117,11.101,13.55896018]
[1672646273771,5.0,11.115,11.102,0.11896018]
[1672646273977,5.0,11.115,11.102,5.11896018]
[1672646274186,5.0,11.115,11.101,13.44]
[1672646274187,5.0,11.115,11.098,13.42]
[1672646274404,5.11936155,11.111,11.094,5.0]
[1672646274611,5.11936155,11.109,11.094,5.0]
[1672646275037,5.0,11.108,11.096,13.56]
[1672646275244,5.0,11.108,11.097,5.0]
[1672646276713,58.65306155,11.109,11.097,5.0]
[1672646277033,0.11936155,11.109,11.1,5.0]
[1672646277765,0.11936155,11.109,11.102,13.44]
[1672646277975,5.0,11.119,11.102,13.44]
[1672646277976,0.11936155,11.117,11.105,13.56]
[1672646278187,0.11936155,11.117,11.106,5.0]
[1672646278389,0.11936155,11.117,11.105,13.56]
[1672646279024,5.11936155,11.117,11.102,13.55]
[1672646279229,5.0,11.115,11.099,18.56]
[1672646279447,0.11936155,11.114,11.099,18.56]
[1672646280069,52.78596155,11.114,11.099,68.8158]
[1672646280286,5.0,11.113,11.099,68.8158]
[1672646281129,57.6666,11.113,11.099,68.8158]
[1672646281762,57.6666,11.113,11.099,63.8158]
[1672646282075,5.0,11.112,11.099,13.56]
[1672646282276,5.0,11.112,11.098,5.0]
[1672646282489,5.0,11.111,11.098,5.0]
[1672646283123,56.405,11.111,11.098,5.0]
[1672646284378,5.0,11.111,11.1,5.0]
[1672646285538,5.0,11.111,11.099,13.43]
[1672646287011,5.0,11.112,11.1,5.0]
[1672646288797,5.0,11.112,11.099,13.43]
[1672646289006,55.0321,11.112,11.099,13.43]
[1672646292157,55.0321,11.112,11.1,5.0]
[1672646292788,50.0321,11.112,11.1,5.0]
[1672646293108,0.11992506,11.114,11.1,5.0]
[1672646293417,5.11992506,11.115,11.1,5.0]
[1672646293627,49.2229,11.114,11.1,5.0]
[1672646293839,5.0,11.113,11.1,5.0]
[1672646294985,5.0,11.113,11.099,52.1123]
[1672646294986,5.0,11.113,11.097,13.56]
[1672646295201,13.53,11.112,11.096,5.0]
[1672646295408,0.11992506,11.108,11.092,5.0]
[1672646295624,5.11992506,11.108,11.092,54.7575]
[1672646295939,5.11992506,11.107,11.092,54.7575]
[1672646296146,56.11011656,11.107,11.092,54.7575]
[1672646296775,5.0,11.105,11.092,54.7575]
[1672646298037,5.0,11.105,11.092,5.0]
[1672646298776,59.1702,11.105,11.092,5.0]
[1672646299302,59.1702,11.105,11.091,13.56]
[1672646299722,59.1702,11.105,11.092,5.0]
[1672646301294,59.1702,11.105,11.091,13.56]
[1672646302665,59.1702,11.105,11.092,5.0]
[1672646302872,5.0,11.105,11.092,5.0]
[1672646304770,5.0,11.105,11.091,18.56]
[1672646305084,58.1846,11.105,11.091,18.44945855]
[1672646305295,58.1846,11.105,11.092,5.0]
[1672646305708,58.1846,11.105,11.09,58.3511]
[1672646305709,58.1846,11.105,11.083,5.0]
[1672646305925,58.1846,11.104,11.087,13.56]
[1672646306140,5.11941656,11.103,11.088,54.1623]
[1672646306449,5.11941656,11.103,11.09,13.53]
[1672646306654,5.11941656,11.103,11.091,5.0]
[1672646306976,0.11941656,11.103,11.091,5.0]
[1672646307182,0.11941656,11.103,11.093,13.53]
[1672646307398,55.0,11.12,11.092,50.0]
[1672646307399,5.11941656,11.111,11.096,13.55]
[1672646307606,5.0,11.111,11.097,58.7772]
[1672646307818,5.0,11.111,11.098,5.0]
[1672646308661,54.9991,11.111,11.098,5.0]
[1672646309284,5.0,11.11,11.097,53.7772]
[1672646310235,5.0,11.11,11.096,13.55]
[1672646310655,5.0,11.109,11.094,62.2843]
[1672646310976,5.0,11.108,11.094,62.2843]
[1672646311174,57.9647,11.108,11.094,62.2843]
[1672646311387,5.0,11.107,11.094,62.2843]
[1672646311706,5.0,11.107,11.095,5.0]
[1672646312756,57.9647,11.108,11.095,5.0]
[1672646312962,52.9647,11.108,11.095,5.0]
[1672646313386,5.11881489,11.109,11.095,5.0]
[1672646314230,5.11881489,11.109,11.094,62.2843]
[1672646315280,5.11881489,11.109,11.091,13.47]
[1672646315491,49.4554,11.108,11.092,5.0]
[1672646315701,5.11881489,11.107,11.092,5.0]
[1672646315911,5.0,11.106,11.092,5.0]
[1672646316117,58.1643,11.106,11.092,5.0]
[1672646317277,58.1643,11.106,11.088,18.54]
[1672646317487,5.11881489,11.104,11.089,58.0296]
[1672646317697,53.1643,11.103,11.089,58.0296]
[1672646318013,5.0,11.102,11.089,58.0296]
[1672646318644,5.0,11.102,11.088,18.54]
[1672646318961,58.1643,11.102,11.088,13.54]
[1672646319374,58.1643,11.102,11.089,5.0]
[1672646319697,5.0,11.101,11.086,18.55]
[1672646320536,50.8913,11.1,11.086,18.55]
[1672646320746,5.0,11.099,11.086,18.55]
[1672646322743,50.8913,11.1,11.086,18.55]
[1672646322953,5.0,11.099,11.082,63.55]
[1672646323165,0.11881489,11.098,11.083,52.2006]
[1672646323373,5.11881489,11.098,11.084,5.0]
[1672646323688,5.0,11.097,11.084,5.0]
[1672646324424,57.9978,11.097,11.084,5.0]
[1672646324839,0.11881489,11.098,11.084,5.0]
[1672646325051,0.11881489,11.105,11.09,5.0]
[1672646325895,5.0,11.104,11.09,5.0]
[1672646326106,5.0,11.103,11.09,5.0]
[1672646326522,5.0,11.103,11.089,13.42]
[1672646326736,54.7478,11.103,11.089,13.42]
[1672646327372,5.0,11.102,11.089,13.42]
[1672646328106,54.7478,11.102,11.089,13.42]
[1672646328727,5.0,11.101,11.085,52.2006]
[1672646329047,5.11888636,11.098,11.081,50.0]
[1672646329259,0.11888636,11.097,11.082,5.0]
[1672646329468,5.11888636,11.097,11.082,5.0]
[1672646329892,0.11888636,11.097,11.086,13.52]
[1672646330102,0.11888636,11.097,11.089,13.47]
[1672646330313,0.11888636,11.1,11.09,5.0]
[1672646330626,0.11888636,11.1,11.092,13.41]
[1672646330838,0.11888636,11.1,11.093,5.0]
[1672646331254,0.11888636,11.1,11.09,5.0]
[1672646331990,0.11888636,11.1,11.089,13.55]
[1672646331991,0.11888636,11.1,11.088,52.4574]
[1672646332935,0.11888636,11.1,11.089,5.0]
[1672646333984,0.11888636,11.1,11.088,52.4574]
[1672646334407,0.11888636,11.1,11.089,5.0]
[1672646335249,0.11888636,11.1,11.089,18.41]
[1672646335460,0.11888636,11.104,11.089,71.2375]
[1672646335669,0.11888636,11.104,11.09,5.0]
[1672646336510,5.11888636,11.104,11.09,5.0]
[1672646337248,57.22168636,11.104,11.09,5.0]
[1672646337454,57.22168636,11.104,11.089,71.2375]
[1672646337875,52.1028,11.103,11.089,18.41]
[1672646338192,5.0,11.102,11.089,18.41]
[1672646339032,57.9451,11.102,11.089,18.41]
[1672646339560,57.9451,11.102,11.089,13.41]
[1672646340082,57.9451,11.102,11.09,5.0]
[1672646340710,5.0,11.101,11.087,5.0]
[1672646341029,57.9451,11.101,11.087,5.0]
[1672646343024,5.11951045,11.102,11.087,5.0]
[1672646343545,54.49251045,11.102,11.087,5.0]
[1672646344176,5.0,11.1,11.087,5.0]
[1672646345124,57.2927,11.1,11.087,5.0]
[1672646345328,57.2927,11.1,11.086,18.52]
[1672646345858,57.2927,11.1,11.086,13.52]
[1672646347961,52.2927,11.1,11.087,5.0]
[1672646348172,0.11951045,11.102,11.087,5.0]
[1672646349436,0.11951045,11.102,11.087,54.2591]
[1672646349751,5.11951045,11.102,11.087,54.2591]
[1672646349957,58.48061045,11.102,11.087,54.2591]
[1672646350695,54.1472,11.101,11.087,54.2591]
[1672646351007,5.0,11.1,11.087,54.2591]